bitfinex/quotes_BTCUSD_20260307
["timestamp","ask_amount","ask_price","bid_price","bid_amount"]
[1772896803423,0.00132582,67914.0,67905.0,0.07363228]
[1772896803831,0.02072547,67914.0,67905.0,0.07383228]
[1772896805469,0.07361318,67923.0,67905.0,0.07383228]
[1772896805621,0.00148,67919.0,67906.0,0.01139536]
[1772896806042,0.07361318,67923.0,67907.0,0.00148]
[1772896806239,0.04329023,67920.0,67908.0,0.01139536]
[1772896806982,0.0226823,67920.0,67908.0,0.01139536]
[1772896807148,0.0736171,67919.0,67909.0,0.07362794]
[1772896807715,0.09301675,67919.0,67909.0,0.07362794]
[1772896808217,0.09449675,67919.0,67909.0,0.07362794]
[1772896809066,0.09449675,67919.0,67909.0,0.07345837]
[1772896810133,0.09449675,67919.0,67909.0,0.06416005]
[1772896811406,0.09449675,67919.0,67902.0,0.0736355]
[1772896811407,0.0750971,67919.0,67902.0,0.0736355]
[1772896811593,0.01939965,67911.0,67898.0,0.0002]
[1772896811833,0.01939965,67911.0,67905.0,0.0002]
[1772896811834,0.03105669,67911.0,67905.0,0.0002]
[1772896811951,0.01313704,67910.0,67897.0,0.05246145]
[1772896812172,0.01325699,67910.0,67897.0,0.05246145]
[1772896812575,0.01939965,67909.0,67894.0,0.0736436]
[1772896812817,0.01165704,67908.0,67894.0,0.0736436]
[1772896813158,0.01165704,67906.0,67893.0,0.0001541]
[1772896813508,0.05494727,67903.0,67890.0,0.07364835]
[1772896813685,0.00148,67902.0,67890.0,0.07364835]
[1772896815817,0.07363661,67901.0,67890.0,0.07364835]
[1772896816048,0.07363661,67901.0,67889.0,0.09071604]
[1772896816049,0.04329023,67900.0,67889.0,0.07939854]
[1772896816171,0.04329023,67900.0,67883.0,0.00148]
[1772896816172,0.01939965,67898.0,67877.0,0.07366193]
[1772896816372,0.01165704,67889.0,67877.0,0.07366193]
[1772896816613,0.00148,67888.0,67877.0,0.07366193]
[1772896817029,0.00148,67887.0,67877.0,0.07366193]
[1772896817199,0.00148,67887.0,67872.0,0.10615027]
[1772896817200,0.0055337,67886.0,67872.0,0.0060876]
[1772896817562,0.0055337,67886.0,67859.0,0.07368216]
[1772896817563,0.0055337,67886.0,67842.0,0.0113175]
[1772896817564,0.0004,67875.0,67842.0,0.0113175]
[1772896817769,0.02910922,67874.0,67846.0,0.07369631]
[1772896817910,0.02910922,67874.0,67850.0,0.02116485]
[1772896818089,0.00148,67873.0,67851.0,0.00148]
[1772896818292,0.02445138,67872.0,67851.0,0.00148]
[1772896818533,0.02445138,67872.0,67846.0,0.07369631]
[1772896818534,0.01165704,67871.0,67852.0,0.02116485]
[1772896818730,0.01939965,67869.0,67850.0,0.0113175]
[1772896818943,0.01939965,67869.0,67850.0,0.0114098]
[1772896818944,0.01165704,67867.0,67850.0,0.0114098]
[1772896819146,0.01165704,67865.0,67850.0,0.0114098]
[1772896819351,0.02593138,67866.0,67850.0,0.0114098]
[1772896819352,0.02445138,67864.0,67853.0,0.0113175]
[1772896819545,0.09358476,67875.0,67850.0,9.23e-05]
[1772896819546,0.00148,67870.0,67854.0,0.00148]
[1772896819748,0.01223861,67873.0,67856.0,0.07368545]
[1772896819906,0.01223861,67873.0,67857.0,0.02116485]
[1772896820342,0.00148,67872.0,67857.0,0.02116485]
[1772896820551,0.01075861,67871.0,67860.0,0.0113175]
[1772896820711,0.01075861,67871.0,67862.0,0.0113175]
[1772896820916,0.01075861,67871.0,67863.0,0.02116485]
[1772896821119,0.00148,67872.0,67862.0,9.23e-05]
[1772896821370,0.00148,67872.0,67863.0,0.03248235]
[1772896821542,0.00148,67872.0,67860.0,0.00148]
[1772896821744,0.00148,67872.0,67863.0,0.02116485]
[1772896821943,0.00148,67872.0,67864.0,0.10615911]
[1772896822354,0.07514849,67872.0,67864.0,0.02116485]
[1772896822786,0.00148,67872.0,67864.0,0.09484161]
[1772896823153,0.00148,67872.0,67864.0,0.09467205]
[1772896823883,0.00199986,67875.0,67867.0,0.02116485]
[1772896824075,0.00148,67875.0,67866.0,0.07367459]
[1772896824278,0.07366345,67877.0,67867.0,0.02116485]
[1772896824483,0.08531232,67884.0,67867.0,0.00040121]
[1772896824701,0.08531232,67884.0,67867.0,0.00188121]
[1772896824988,0.07513528,67884.0,67872.0,0.02116485]
[1772896825164,0.07513528,67884.0,67875.0,0.0113175]
[1772896825525,0.05798187,67884.0,67875.0,0.03248235]
[1772896825680,0.04030811,67884.0,67869.0,0.0113175]
[1772896825855,0.04030811,67884.0,67867.0,0.00288121]
[1772896825856,0.00148,67886.0,67874.0,0.0113175]
[1772896826081,0.00575,67889.0,67878.0,0.0113175]
[1772896826329,0.00148,67887.0,67879.0,0.03248235]
[1772896826772,0.00575,67889.0,67877.0,0.03248235]
[1772896826963,0.00148,67890.0,67876.0,0.00148]
[1772896827120,0.00148,67890.0,67878.0,0.0113175]
[1772896827320,0.00148,67892.0,67881.0,0.02116485]
[1772896827502,0.01165704,67898.0,67883.0,0.0113175]
[1772896827705,0.01165704,67898.0,67884.0,0.0113175]
[1772896828061,0.00148,67898.0,67886.0,0.0113175]
[1772896828479,0.03105669,67897.0,67868.0,0.07367242]
[1772896828650,0.00148,67898.0,67867.0,0.07407445]
[1772896828855,0.01165704,67889.0,67867.0,0.1065568]
[1772896829055,0.01165704,67887.0,67867.0,0.1065568]
[1772896829261,0.01165704,67898.0,67868.0,0.02116485]
[1772896829462,0.00148,67895.0,67871.0,0.0113175]
[1772896829634,0.01165704,67894.0,67873.0,0.0113175]
[1772896829847,0.07364529,67893.0,67877.0,0.07366265]
[1772896830053,0.01165704,67891.0,67875.0,0.07366328]
[1772896830901,0.08529737,67898.0,67879.0,0.0113175]
[1772896831052,0.00148,67897.0,67882.0,0.02116485]
[1772896831249,0.00148,67896.0,67884.0,0.02116485]
[1772896831456,0.00148,67896.0,67885.0,0.02116485]
[1772896831630,0.00148,67896.0,67886.0,0.0113175]
[1772896831823,0.00148,67896.0,67886.0,0.08496971]
[1772896832619,0.00148,67896.0,67886.0,0.0113175]
[1772896832620,0.07512216,67896.0,67886.0,0.0113175]
[1772896833043,0.07512216,67896.0,67886.0,0.08497002]
[1772896834460,0.00148,67896.0,67886.0,0.08497002]
[1772896834730,0.00148,67896.0,67887.0,0.0113175]
[1772896835260,0.00133,67896.0,67887.0,0.0113175]
[1772896835461,0.00148,67898.0,67887.0,0.0113175]
[1772896836060,0.00148,67898.0,67887.0,0.03935988]
[1772896836496,0.00148,67898.0,67887.0,0.03919034]
[1772896837102,0.00022001,67896.0,67888.0,0.07365071]
[1772896838303,0.00034021,67896.0,67888.0,0.07365071]
[1772896838738,0.07364312,67895.0,67884.0,0.07365288]
[1772896839133,0.08712205,67895.0,67884.0,0.07365288]
[1772896841661,0.00034021,67896.0,67885.0,0.01416176]
[1772896841849,0.00034021,67896.0,67886.0,0.04220414]
[1772896842734,0.00034021,67896.0,67886.0,0.02804238]
[1772896842954,0.00034021,67896.0,67887.0,0.01416176]
[1772896843579,0.0736394,67899.0,67888.0,0.10169309]
[1772896843782,0.00148,67898.0,67889.0,0.01416176]
[1772896844649,0.00148,67898.0,67888.0,0.07377091]
[1772896845945,0.01347893,67897.0,67888.0,0.0001202]
[1772896846098,0.01347893,67897.0,67884.0,0.07365288]
[1772896846443,0.01359906,67897.0,67884.0,0.07365288]
[1772896847488,0.01359906,67897.0,67883.0,0.00148]
[1772896848511,0.01347893,67895.0,67883.0,0.07365607]
[1772896849624,0.01347893,67895.0,67881.0,0.08781946]
[1772896850416,0.07364421,67894.0,67881.0,0.08781946]
[1772896850957,0.07364421,67894.0,67881.0,0.08764992]
[1772896852622,0.01347893,67895.0,67881.0,0.08764992]
[1772896852839,0.00148,67894.0,67882.0,0.02804238]
[1772896853062,0.00148,67894.0,67885.0,0.01416176]
[1772896853238,0.07376119,67897.0,67887.0,0.01416176]
[1772896853239,0.00148,67895.0,67887.0,0.01416176]
[1772896854000,0.07563803,67900.0,67889.0,0.01416176]
[1772896854200,0.07711803,67900.0,67889.0,0.04232427]
[1772896854584,0.07563803,67900.0,67890.0,0.07364854]
[1772896854779,0.00348,67900.0,67890.0,0.07364854]
[1772896855301,0.00148,67899.0,67890.0,0.07364854]
[1772896855845,0.002,67900.0,67890.0,0.07364854]
[1772896856043,0.00022001,67895.0,67890.0,0.07364854]
[1772896856273,0.00022001,67895.0,67891.0,0.01416176]
[1772896856690,0.00022001,67895.0,67892.0,0.07364637]
[1772896856896,7.001e-05,67895.0,67892.0,0.07364637]
[1772896857897,0.002,67900.0,67892.0,0.07364637]
[1772896858072,0.00022001,67905.0,67895.0,0.01416176]
[1772896858273,0.00022001,67905.0,67897.0,0.01416176]
[1772896858905,0.00022001,67905.0,67897.0,0.08780203]
[1772896859987,0.0738524,67905.0,67897.0,0.01416176]
[1772896860182,0.0738524,67905.0,67894.0,0.07364419]
[1772896860183,0.0753324,67905.0,67894.0,0.07364419]
[1772896861012,0.00148,67905.0,67893.0,0.07364468]
[1772896861791,0.01725904,67905.0,67893.0,0.07364468]
[1772896864629,0.0908915,67905.0,67893.0,0.07364468]
[1772896865192,0.09111151,67905.0,67893.0,0.07364468]
[1772896866590,0.01577904,67903.0,67893.0,0.07364468]
[1772896869083,0.01517224,67900.0,67881.0,0.07385831]
[1772896869285,0.01522532,67900.0,67881.0,0.13208178]
[1772896869491,0.01517224,67898.0,67881.0,0.13208178]
[1772896871545,0.08881319,67897.0,67881.0,0.13208178]
[1772896872695,0.07364095,67897.0,67881.0,0.13208178]
[1772896872902,0.01517224,67896.0,67881.0,0.11569064]
[1772896873899,0.07364312,67895.0,67881.0,0.11569064]
[1772896874102,0.07364312,67895.0,67863.0,0.07367785]
[1772896874103,0.01517224,67894.0,67863.0,0.07367785]
[1772896874422,0.01517224,67892.0,67863.0,0.07515785]
[1772896874615,0.01517224,67892.0,67866.0,0.04183233]
[1772896874902,0.01517224,67889.0,67869.0,0.05822347]
[1772896875524,0.04075971,67888.0,67862.0,0.0001]
[1772896875725,0.07365397,67885.0,67862.0,0.0001]
[1772896875903,0.04075971,67882.0,67862.0,0.0001]
[1772896876099,0.07365397,67885.0,67852.0,0.00148]
[1772896876100,0.01517224,67879.0,67852.0,0.00148]
[1772896876301,0.04075971,67876.0,67852.0,0.00148]
[1772896876525,0.04075971,67876.0,67850.0,0.07568979]
[1772896876526,0.01517224,67873.0,67850.0,0.002]
[1772896876680,0.04075971,67870.0,67850.0,0.002]
[1772896876888,0.01517224,67867.0,67850.0,0.002]
[1772896877297,0.01517224,67867.0,67850.0,0.00240121]
[1772896877768,0.07367459,67866.0,67850.0,0.00240121]
[1772896877912,0.01517224,67865.0,67850.0,0.00240121]
[1772896878511,0.01517224,67864.0,67850.0,0.00240121]
[1772896878759,0.07367459,67868.0,67852.0,0.01639114]
[1772896878953,0.01517224,67872.0,67850.0,0.07609283]
[1772896878954,0.00148,67872.0,67856.0,0.04183233]
[1772896879308,0.00148,67872.0,67861.0,0.01639114]
[1772896879476,0.00148,67872.0,67862.0,0.04183233]
[1772896879677,0.07366353,67877.0,67864.0,0.04183233]
[1772896879848,0.07366482,67875.0,67864.0,0.04183233]
[1772896880269,0.00148,67874.0,67866.0,0.04183233]
[1772896880500,0.07366482,67875.0,67866.0,0.04183233]
[1772896880501,0.07366482,67875.0,67867.0,0.04183233]
[1772896880661,0.00148,67874.0,67867.0,0.04183233]
[1772896881493,0.00133,67874.0,67867.0,0.04183233]
[1772896882086,0.00148,67874.0,67867.0,0.04183233]
[1772896883570,0.00148,67878.0,67873.0,0.04183233]
[1772896883740,0.00148,67878.0,67875.0,0.04183233]
[1772896884140,0.07366156,67878.0,67870.0,0.05822347]
[1772896884786,0.07366156,67878.0,67870.0,0.05862468]
[1772896887142,0.0751415,67879.0,67871.0,0.04183233]
[1772896887347,0.07365287,67887.0,67872.0,0.04183233]
[1772896887572,0.07365287,67887.0,67870.0,0.07407127]
[1772896887573,0.07513287,67887.0,67875.0,0.01639114]
[1772896888037,0.07365287,67887.0,67875.0,0.01639114]
[1772896888237,0.00148,67887.0,67875.0,0.01639114]
[1772896888455,0.00148,67886.0,67876.0,0.04183233]
[1772896888648,0.0794007,67889.0,67879.0,0.01639114]
[1772896888649,0.00575,67889.0,67879.0,0.01639114]
[1772896888858,0.00575,67889.0,67880.0,0.05822347]
[1772896889424,0.00575,67889.0,67881.0,0.07365831]
[1772896890363,0.00575,67889.0,67881.0,0.09004945]
[1772896890574,0.00148,67891.0,67881.0,0.09004945]
[1772896891115,0.00148,67892.0,67881.0,0.09004945]
[1772896891359,0.00148,67892.0,67881.0,0.04948922]
[1772896891937,0.01517224,67890.0,67877.0,0.07366176]
[1772896892136,0.01517224,67890.0,67877.0,0.07514176]
[1772896892670,0.07364746,67891.0,67878.0,0.01639114]
[1772896893446,0.07364746,67891.0,67878.0,0.09005228]
[1772896893622,0.01517224,67889.0,67877.0,0.07514176]
[1772896895281,0.01517224,67889.0,67880.0,1e-08]
[1772896896474,0.07365071,67888.0,67880.0,1e-08]
[1772896899289,0.07513071,67888.0,67880.0,1e-08]
[1772896899738,0.07364915,67890.0,67880.0,1e-08]
[1772896899932,0.00148,67889.0,67880.0,1e-08]
[1772896900444,0.07364915,67890.0,67880.0,1e-08]
[1772896900445,0.00148,67888.0,67880.0,1e-08]
[1772896900866,0.07364915,67890.0,67880.0,1e-08]
[1772896901069,0.00148,67888.0,67880.0,1e-08]
[1772896903227,0.07513109,67888.0,67880.0,1e-08]
[1772896904038,0.05696777,67888.0,67880.0,1e-08]
[1772896904419,0.05696777,67888.0,67878.0,0.051591]
[1772896905554,0.00148,67888.0,67878.0,0.051591]
[1772896907491,0.0736518,67887.0,67877.0,0.07534232]
[1772896911909,0.00148,67888.0,67877.0,0.07534232]
[1772896912031,0.00148,67888.0,67879.0,0.01887215]
[1772896913968,0.00148,67888.0,67880.0,0.07365939]
[1772896914326,0.00148,67888.0,67877.0,0.07534263]
[1772896914327,0.09251816,67888.0,67877.0,0.07534263]
[1772896915155,0.01716724,67886.0,67877.0,0.07534263]
[1772896915376,0.00170001,67888.0,67877.0,0.09421478]
[1772896916267,0.00170001,67888.0,67877.0,0.07534263]
[1772896916459,0.00170001,67888.0,67878.0,0.01887215]
[1772896917686,0.07365071,67890.0,67878.0,0.01887215]
[1772896917888,0.00148,67889.0,67878.0,0.01887215]
[1772896918107,0.00148,67888.0,67878.0,0.01887215]
[1772896922468,0.00170001,67888.0,67879.0,0.07366048]
[1772896923055,0.00022001,67888.0,67879.0,0.07366048]
[1772896923261,0.00170001,67888.0,67879.0,0.07366048]
[1772896925302,0.00022001,67888.0,67879.0,0.07366048]
[1772896925443,0.00170001,67888.0,67879.0,0.07366048]
[1772896930265,0.00170001,67888.0,67879.0,0.06217373]
[1772896931217,0.07513071,67890.0,67879.0,0.06217373]
[1772896932718,0.0931936,67890.0,67879.0,0.06217373]
[1772896932907,0.0946736,67890.0,67879.0,0.06217373]
[1772896934499,0.0946736,67890.0,67878.0,0.07366096]
[1772896935608,0.01954289,67889.0,67878.0,0.07366096]
[1772896938094,0.09319256,67889.0,67878.0,0.07386096]
[1772896938289,0.09319256,67889.0,67878.0,0.07369137]
[1772896941193,0.09359886,67889.0,67878.0,0.07369137]
[1772896941900,0.09359886,67889.0,67878.0,0.0735218]
[1772896942414,0.00022001,67898.0,67878.0,0.0735218]
[1772896942415,0.00170001,67896.0,67878.0,0.0735218]
[1772896942601,0.00022001,67898.0,67878.0,0.0735218]
[1772896942799,0.00022001,67898.0,67879.0,0.05599486]
[1772896943002,0.00022001,67898.0,67881.0,0.05599486]
[1772896943188,0.00022001,67898.0,67884.0,0.01812006]
[1772896943408,0.00022001,67898.0,67886.0,0.01812006]
[1772896944288,0.00022001,67898.0,67883.0,0.01960006]
[1772896944289,0.01954289,67897.0,67883.0,0.01960006]
[1772896944493,0.07386029,67898.0,67884.0,0.07365505]
[1772896944662,0.07386029,67898.0,67885.0,0.01812006]
[1772896945065,0.00022001,67898.0,67887.0,0.01812006]
[1772896945270,0.00022001,67898.0,67889.0,0.05599486]
[1772896945441,0.00022001,67898.0,67890.0,0.01960006]
[1772896945842,0.00022001,67898.0,67890.0,0.01943047]
[1772896946386,0.00022001,67898.0,67890.0,0.0192609]
[1772896947129,0.00022001,67898.0,67891.0,0.07364746]
[1772896948414,0.00034014,67898.0,67891.0,0.07364746]
[1772896949317,0.00034014,67898.0,67891.0,0.07512746]
[1772896949474,0.00022001,67903.0,67891.0,0.07512746]
[1772896949475,0.0004,67925.0,67894.0,0.01812006]
[1772896949684,0.0004,67925.0,67892.0,0.00148]
[1772896949685,0.07362144,67915.0,67897.0,0.05599486]
[1772896949869,0.07362014,67917.0,67901.0,0.05599486]
[1772896950073,0.07362223,67915.0,67903.0,0.01812006]
[1772896950273,0.07362223,67915.0,67903.0,0.05599486]
[1772896950494,0.07362223,67915.0,67904.0,0.01812006]
[1772896951910,0.07362223,67915.0,67905.0,0.07363228]
[1772896952253,0.07362223,67915.0,67905.0,0.09175234]
[1772896952812,0.0063415,67916.0,67906.0,0.01812006]
[1772896953032,0.0063415,67916.0,67906.0,0.01778098]
[1772896954441,0.0063415,67916.0,67907.0,0.07363011]
[1772896955446,0.0063415,67916.0,67908.0,0.01812006]
[1772896956675,0.0137335,67919.0,67908.0,0.01812006]
[1772896956676,0.0122535,67919.0,67909.0,0.07362794]
[1772896956824,0.0122535,67919.0,67910.0,0.01812006]
[1772896957019,0.0122535,67919.0,67910.0,0.01778104]
[1772896958378,0.0122535,67919.0,67910.0,0.01799894]
[1772896958894,0.0122535,67919.0,67911.0,0.07362577]
[1772896959980,0.0122535,67919.0,67911.0,0.07345624]
[1772896960549,0.0122535,67919.0,67912.0,0.01989166]
[1772896961490,0.00022001,67921.0,67914.0,0.01989166]
[1772896962867,0.0004,67925.0,67914.0,0.01989166]
[1772896963073,0.0004,67925.0,67915.0,0.00148]
[1772896963272,0.07401121,67925.0,67916.0,0.01989166]
[1772896963595,0.02044288,67923.0,67914.0,0.07362148]
[1772896963758,0.02044288,67923.0,67914.0,0.07510148]
[1772896964595,0.02044288,67923.0,67914.0,0.07362148]
[1772896965569,0.02044288,67923.0,67912.0,0.07362252]
[1772896965867,0.02044288,67923.0,67913.0,0.00148]
[1772896966093,0.02044288,67923.0,67912.0,0.07362252]
[1772896966293,0.02044288,67923.0,67913.0,0.00148]
[1772896967603,0.0004,67925.0,67914.0,0.07362252]
[1772896967876,0.00022001,67923.0,67914.0,0.07362252]
[1772896976336,0.0004,67925.0,67914.0,0.07362252]
[1772896978149,0.0004,67925.0,67916.0,0.01989166]
[1772896979589,0.00025,67925.0,67916.0,0.01989166]
[1772896979879,0.00025,67925.0,67917.0,0.07361927]
[1772896981748,0.00047001,67925.0,67917.0,0.07361927]
[1772896986805,0.00047001,67925.0,67918.0,0.02108323]
[1772896988323,0.00022001,67933.0,67921.0,0.02009236]
[1772896988536,0.00022001,67933.0,67919.0,0.00148]
[1772896988537,0.00148,67936.0,67925.0,0.02009236]
[1772896988734,0.0750791,67936.0,67926.0,0.07360951]
[1772896989203,0.0735991,67936.0,67926.0,0.07360951]
[1772896989410,0.07529785,67937.0,67926.0,0.09370187]
[1772896989811,0.07541807,67937.0,67926.0,0.09370187]
[1772896990611,0.00182023,67937.0,67926.0,0.09370187]
[1772896990810,0.00034023,67937.0,67926.0,0.07360951]
[1772896991015,0.00182023,67937.0,67926.0,0.09370187]
[1772896991416,0.07507657,67938.0,67926.0,0.09370187]
[1772896991617,0.07507657,67938.0,67927.0,0.02009236]
[1772896991848,0.00148,67942.0,67928.0,0.05902223]
[1772896992037,0.00148,67941.0,67931.0,0.02009236]
[1772896992243,0.00575,67943.0,67934.0,0.02009236]
[1772896992640,0.002,67950.0,67935.0,0.05902223]
[1772896992843,0.002,67950.0,67938.0,0.02009236]
[1772896993723,0.00348,67950.0,67938.0,0.02009236]
[1772896993924,0.00348,67950.0,67939.0,0.05902223]
[1772896994131,0.00348,67950.0,67941.0,0.02009236]
[1772896994556,0.002,67950.0,67941.0,0.02009236]
[1772896994780,0.00215,67950.0,67942.0,0.07359218]
[1772896994975,0.00215,67950.0,67942.0,0.09368454]
[1772896995814,0.07573399,67950.0,67942.0,0.02009236]
[1772896995972,0.07573399,67950.0,67941.0,0.07359294]
[1772896997585,0.07573399,67950.0,67940.0,0.07359376]
[1772896999509,0.075954,67950.0,67940.0,0.07359376]
[1772897001555,0.00237001,67950.0,67940.0,0.07359376]
[1772897001887,0.07595357,67950.0,67940.0,0.09368612]
[1772897002070,0.00237001,67950.0,67940.0,0.07359376]
[1772897002268,0.00237001,67950.0,67941.0,0.02009236]
[1772897003188,0.00237001,67950.0,67939.0,0.07359543]
[1772897003189,0.07595372,67950.0,67939.0,0.07359435]
[1772897003358,0.09657167,67950.0,67939.0,0.07359435]
[1772897003967,0.08657167,67950.0,67939.0,0.07359435]
[1772897004388,0.08657167,67950.0,67938.0,0.00148]
[1772897005751,0.08657167,67950.0,67937.0,0.09368779]
[1772897005942,0.08657167,67950.0,67938.0,0.00148]
[1772897006544,0.08657167,67950.0,67939.0,0.0002]
[1772897006868,0.06617373,67950.0,67934.0,0.07360034]
[1772897007048,0.10953429,67950.0,67935.0,0.00148]
[1772897007253,0.02061795,67948.0,67935.0,0.00148]
[1772897007464,0.02061795,67946.0,67935.0,0.00148]
[1772897010679,0.07365761,67946.0,67936.0,0.07359868]
[1772897012307,0.07358784,67946.0,67936.0,0.07359868]
[1772897012490,0.02061795,67945.0,67936.0,0.07359868]
[1772897014728,0.07359001,67944.0,67936.0,0.07379868]
[1772897015915,0.07359001,67944.0,67936.0,0.0002]
[1772897016115,0.02061795,67943.0,67936.0,0.0002]
[1772897016745,0.07359218,67942.0,67936.0,0.0002]
[1772897017973,0.07358784,67946.0,67936.0,0.0002]
[1772897018143,0.07506769,67947.0,67937.0,0.01952245]
[1772897018343,0.07506769,67947.0,67938.0,0.01952245]
[1772897018567,0.07506769,67947.0,67936.0,0.0002]
[1772897018568,0.0735791,67955.0,67936.0,0.0002]
[1772897018569,0.07357432,67959.0,67939.0,0.05819494]
[1772897018760,0.07357432,67959.0,67943.0,0.07359109]
[1772897018761,0.0735781,67955.0,67943.0,0.07359109]
[1772897018957,0.0735781,67955.0,67945.0,0.01952245]
[1772897019158,0.0735781,67955.0,67943.0,0.07359109]
[1772897019729,0.0735781,67955.0,67944.0,0.01952245]
[1772897020943,0.0735781,67955.0,67945.0,0.07358893]
[1772897021145,0.02141141,67954.0,67937.0,0.07507709]
[1772897021448,0.05690431,67952.0,67937.0,0.07507709]
[1772897021654,0.02141141,67951.0,67937.0,0.07359709]
[1772897021849,0.02289141,67950.0,67937.0,0.07359709]
[1772897022238,0.02289141,67950.0,67937.0,0.07507709]
[1772897022444,0.05690431,67948.0,67936.0,0.07527852]
[1772897022622,0.02141141,67947.0,67936.0,0.07527852]
[1772897023044,0.07358784,67946.0,67936.0,0.07527852]
[1772897024059,0.07358784,67946.0,67936.0,0.07379852]
[1772897024260,0.05294204,67946.0,67936.0,0.07379852]
[1772897024647,0.05294204,67946.0,67937.0,0.01952245]
[1772897025358,0.00148,67947.0,67938.0,0.07359651]
[1772897026767,0.07371026,67956.0,67938.0,0.07359651]
[1772897026969,0.14738823,67954.0,67941.0,0.07623739]
[1772897027148,0.14738823,67954.0,67943.0,0.01952245]
[1772897027323,0.07358026,67953.0,67944.0,0.07359001]
[1772897027919,0.07358026,67953.0,67945.0,0.01952245]
[1772897029133,0.07358026,67953.0,67942.0,0.07507177]
[1772897029338,0.09499384,67951.0,67942.0,0.00148]
[1772897029784,0.09499384,67951.0,67942.0,0.07507164]
[1772897031082,0.09521385,67951.0,67942.0,0.07507164]
[1772897032406,0.09521417,67951.0,67942.0,0.07507164]
[1772897032610,0.07380276,67951.0,67942.0,0.07507164]
[1772897034227,0.14738823,67950.0,67942.0,0.07507164]
[1772897035075,0.22097181,67950.0,67942.0,0.07507164]
[1772897039742,0.22119182,67950.0,67942.0,0.07507164]
[1772897040926,0.14760824,67950.0,67942.0,0.07507164]
[1772897043211,0.22119191,67950.0,67942.0,0.07507164]
[1772897045365,0.22103776,67950.0,67941.0,0.07359321]
[1772897046299,0.22103776,67950.0,67942.0,0.0002]
[1772897048174,0.14723413,67950.0,67942.0,0.0002]
[1772897048381,0.07380368,67950.0,67942.0,0.0002]
[1772897050576,0.14723408,67949.0,67942.0,0.0002]
[1772897058136,0.13954519,67949.0,67942.0,0.0002]
[1772897059779,0.06611474,67949.0,67942.0,0.0002]
[1772897060480,0.07343045,67948.0,67942.0,0.0002]
[1772897060695,0.00022001,67950.0,67942.0,0.0002]
[1772897060888,0.00022001,67957.0,67946.0,0.05722142]
[1772897061070,0.07357476,67959.0,67950.0,0.05722142]
[1772897061246,0.07357476,67959.0,67951.0,0.02082276]
[1772897061641,0.07357476,67959.0,67952.0,0.07358135]
[1772897061642,0.00022001,67957.0,67952.0,0.07358135]
[1772897061848,0.00022001,67957.0,67953.0,0.02082276]
[1772897062250,0.0006205,67957.0,67953.0,0.02082276]
[1772897062997,0.00128,67960.0,67953.0,0.02082276]
[1772897063159,0.00012008,67960.0,67953.0,0.02082276]
[1772897065917,0.00012008,67960.0,67953.0,0.07357937]
[1772897066280,0.0001322,67963.0,67955.0,0.02082276]
[1772897066640,0.0001322,67963.0,67956.0,0.02082276]
[1772897067908,0.0001322,67963.0,67956.0,0.09439942]
[1772897068925,0.00035221,67963.0,67956.0,0.09439942]
[1772897069164,0.07392167,67963.0,67956.0,0.09439942]
[1772897069346,0.00035221,67963.0,67956.0,0.09439942]
[1772897069744,0.00022001,67964.0,67956.0,0.09439942]
[1772897070167,0.07378837,67964.0,67956.0,0.09439942]
[1772897071975,0.07347986,67964.0,67956.0,0.09439942]
[1772897072182,0.05861365,67964.0,67956.0,0.09439942]
[1772897074664,0.00015,67967.0,67956.0,0.09439942]
[1772897075498,0.07356406,67968.0,67956.0,0.09439942]
[1772897075851,0.00022001,67967.0,67956.0,0.09439942]
[1772897076887,0.07356406,67968.0,67956.0,0.09439942]
[1772897077092,0.01473394,67967.0,67956.0,0.09439942]
[1772897079053,0.08829976,67967.0,67956.0,0.09439942]
[1772897079558,0.08829976,67967.0,67957.0,0.02112072]
[1772897080937,0.08829976,67967.0,67958.0,0.07357485]
[1772897085378,0.08851977,67967.0,67958.0,0.07357485]
[1772897085692,0.08851977,67967.0,67956.0,0.0002]
[1772897085897,0.02145898,67964.0,67956.0,0.0002]
[1772897086046,0.02145898,67964.0,67954.0,0.07357918]
[1772897089202,0.01473394,67963.0,67954.0,0.07357918]
[1772897093508,0.01473394,67963.0,67954.0,0.07377918]
[1772897093871,0.01495395,67963.0,67954.0,0.07377918]
[1772897094206,0.10998292,67963.0,67954.0,0.07377918]
[1772897095676,0.02145898,67962.0,67954.0,0.0002]
[1772897096629,0.0628294,67961.0,67950.0,0.00163]
[1772897096829,0.02145898,67958.0,67947.0,0.0002]
[1772897097054,0.02145898,67957.0,67947.0,0.07378673]
[1772897097703,0.07357702,67956.0,67947.0,0.0002]
[1772897098282,0.00148,67955.0,67947.0,0.0002]
[1772897099113,0.01621394,67955.0,67947.0,0.0002]
[1772897099937,0.07357918,67954.0,67943.0,0.07358893]
[1772897100104,0.09503816,67954.0,67944.0,0.07358998]
[1772897101294,0.02158117,67951.0,67936.0,0.00168]
[1772897101456,0.05618946,67948.0,67937.0,0.07373757]
[1772897101632,0.02306117,67947.0,67937.0,0.07373757]
[1772897102236,0.02306117,67947.0,67937.0,0.0003401]
[1772897102237,0.07358784,67946.0,67937.0,0.0003401]
[1772897103167,0.01473394,67945.0,67937.0,0.0003401]
[1772897104115,0.07359001,67944.0,67937.0,0.0003401]
[1772897104366,0.07359001,67944.0,67937.0,0.07393763]
[1772897107702,0.01473394,67943.0,67937.0,0.07393763]
[1772897108501,0.08832541,67943.0,67937.0,0.07393763]
[1772897109143,0.07740715,67942.0,67930.0,0.0002]
[1772897109412,0.02189984,67939.0,67930.0,0.0002]
[1772897109962,0.02189984,67939.0,67937.0,0.0002]
[1772897110803,0.07359651,67938.0,67930.0,0.0002]
[1772897112217,0.01473394,67937.0,67930.0,0.0002]
[1772897113419,0.07359868,67936.0,67930.0,0.0002]
[1772897114593,0.07370442,67937.0,67930.0,0.0002]
[1772897116841,0.07359976,67935.0,67930.0,0.0002]
[1772897117749,0.0954996,67935.0,67930.0,0.0002]
[1772897118042,0.07359976,67935.0,67930.0,0.0002]
[1772897118596,0.07370571,67937.0,67930.0,0.0002]
[1772897119614,0.07370571,67937.0,67933.0,0.00015]
[1772897120270,0.07359976,67935.0,67933.0,0.00015]
[1772897121980,0.00010595,67937.0,67933.0,0.00015]
[1772897122182,0.07358468,67949.0,67937.0,0.02125869]
[1772897122360,0.07358468,67949.0,67939.0,0.05760236]
[1772897122563,0.07358468,67949.0,67937.0,0.00040049]
[1772897122564,0.07358468,67949.0,67941.0,0.02125869]
[1772897123169,0.0738042,67950.0,67941.0,0.02125869]
[1772897123573,0.01473394,67948.0,67941.0,0.02125869]
[1772897124300,0.08831965,67948.0,67942.0,0.09485087]
[1772897124446,0.00022001,67944.0,67942.0,0.07359218]
[1772897124652,0.00022001,67944.0,67943.0,0.02125869]
[1772897124846,0.01473394,67948.0,67943.0,0.02125869]
[1772897125098,0.00022001,67950.0,67943.0,0.02125869]
[1772897125553,0.00022001,67951.0,67943.0,0.02125869]
[1772897126203,0.00022001,67951.0,67944.0,0.07359001]